[Event "Titled Tuesday Blitz March 22 Late 2022"]
[White "Ezat, Mohamed"]
[Black "Cappai, Davide"]
[WhiteFideId "10600906"]
[BlackFideId "813338"]
[WhiteElo "2386"]
[BlackElo "2295"]
[Result "0-1"]
[Round "11"]
[TimeControl "180+1"]
[Date "2022.03.22"]
[WhiteClock "0:00:08"]
[BlackClock "0:00:14"]

1. e4 {[%clk 0:03:00]}  c5 {[%clk 0:02:59]} 2. d4 {[%clk 0:03:00]}  cxd4 {[%clk 0:02:59]} 3. c3 {[%clk 0:03:01]}  d3 {[%clk 0:02:59]} 4. Nf3 {[%clk 0:03:00]}  g6 {[%clk 0:02:59]} 5. Bxd3 {[%clk 0:03:00]}  Bg7 {[%clk 0:03:00]} 6. O-O {[%clk 0:03:00]}  Nc6 {[%clk 0:03:00]} 7. h3 {[%clk 0:03:00]}  d6 {[%clk 0:03:00]} 8. Re1 {[%clk 0:03:01]}  Nf6 {[%clk 0:03:01]} 9. Na3 {[%clk 0:03:01]}  O-O {[%clk 0:03:02]} 10. Nc2 {[%clk 0:03:01]}  Nd7 {[%clk 0:03:00]} 11. Bg5 {[%clk 0:03:01]}  a5 {[%clk 0:03:00]} 12. Qd2 {[%clk 0:03:00]}  Nc5 {[%clk 0:02:56]} 13. Bc4 {[%clk 0:02:57]}  Be6 {[%clk 0:02:52]} 14. Bd5 {[%clk 0:02:57]}  Qd7 {[%clk 0:02:48]} 15. Ncd4 {[%clk 0:02:57]}  Rfe8 {[%clk 0:02:39]} 16. Rad1 {[%clk 0:02:53]}  Rab8 {[%clk 0:02:37]} 17. Bh6 {[%clk 0:02:50]}  Bh8 {[%clk 0:02:29]} 18. Qf4 {[%clk 0:02:34]}  Bxd5 {[%clk 0:02:13]} 19. exd5 {[%clk 0:02:33]}  Nxd4 {[%clk 0:02:14]} 20. cxd4 {[%clk 0:02:30]}  Na4 {[%clk 0:02:07]} 21. Ng5 {[%clk 0:02:30]}  Bf6 {[%clk 0:02:05]} 22. Ne4 {[%clk 0:02:28]}  Bh8 {[%clk 0:02:04]} 23. Re2 {[%clk 0:02:18]}  Nb6 {[%clk 0:02:03]} 24. Qf3 {[%clk 0:02:08]}  Qf5 {[%clk 0:02:02]} 25. Rde1 {[%clk 0:02:04]}  Qxf3 {[%clk 0:01:42]} 26. gxf3 {[%clk 0:02:03]}  Red8 {[%clk 0:01:43]} 27. Nc3 {[%clk 0:01:43]}  Bf6 {[%clk 0:01:42]} 28. f4 {[%clk 0:01:39]}  Rbc8 {[%clk 0:01:42]} 29. Kg2 {[%clk 0:01:37]}  Rc4 {[%clk 0:01:39]} 30. Re4 {[%clk 0:01:37]}  Rd7 {[%clk 0:01:32]} 31. Kg3 {[%clk 0:01:35]}  Rxd4 {[%clk 0:01:28]} 32. Rxd4 {[%clk 0:01:34]}  Bxd4 {[%clk 0:01:28]} 33. Nb5 {[%clk 0:01:28]}  Bg7 {[%clk 0:01:20]} 34. Bxg7 {[%clk 0:01:28]}  Kxg7 {[%clk 0:01:20]} 35. Rd1 {[%clk 0:01:28]}  Na4 {[%clk 0:01:17]} 36. b3 {[%clk 0:01:27]}  Nc5 {[%clk 0:01:18]} 37. Kf3 {[%clk 0:01:26]}  f5 {[%clk 0:01:16]} 38. Nd4 {[%clk 0:01:23]}  Kf6 {[%clk 0:01:16]} 39. Re1 {[%clk 0:01:18]}  Rc7 {[%clk 0:01:10]} 40. Re3 {[%clk 0:01:13]}  Ne4 {[%clk 0:01:08]} 41. Rd3 {[%clk 0:01:08]}  Rc1 {[%clk 0:01:03]} 42. Kg2 {[%clk 0:01:06]}  Ra1 {[%clk 0:00:55]} 43. a4 {[%clk 0:01:06]}  Rc1 {[%clk 0:00:55]} 44. h4 {[%clk 0:00:45]}  Rc3 {[%clk 0:00:54]} 45. Rxc3 {[%clk 0:00:43]}  Nxc3 {[%clk 0:00:54]} 46. Kf3 {[%clk 0:00:43]}  Nxd5 {[%clk 0:00:54]} 47. Nb5 {[%clk 0:00:41]}  Ke6 {[%clk 0:00:48]} 48. Na3 {[%clk 0:00:40]}  Nb6 {[%clk 0:00:46]} 49. Nc2 {[%clk 0:00:38]}  Kd5 {[%clk 0:00:47]} 50. Ke3 {[%clk 0:00:37]}  e5 {[%clk 0:00:47]} 51. fxe5 {[%clk 0:00:35]}  dxe5 {[%clk 0:00:48]} 52. Kd3 {[%clk 0:00:36]}  e4+ {[%clk 0:00:45]} 53. Ke3 {[%clk 0:00:33]}  Ke5 {[%clk 0:00:45]} 54. f4+ {[%clk 0:00:33]}  exf3 {[%clk 0:00:45]} 55. Kxf3 {[%clk 0:00:34]}  Nd5 {[%clk 0:00:42]} 56. Na3 {[%clk 0:00:34]}  b6 {[%clk 0:00:36]} 57. Nc4+ {[%clk 0:00:33]}  Ke6 {[%clk 0:00:32]} 58. h5 {[%clk 0:00:27]}  g5 {[%clk 0:00:31]} 59. h6 {[%clk 0:00:27]}  Kf6 {[%clk 0:00:29]} 60. Nd6 {[%clk 0:00:27]}  Kg6 {[%clk 0:00:26]} 61. Kg3 {[%clk 0:00:27]}  Ne7 {[%clk 0:00:19]} 62. Nc4 {[%clk 0:00:25]}  Kxh6 {[%clk 0:00:19]} 63. Nxb6 {[%clk 0:00:25]}  Nc6 {[%clk 0:00:20]} 64. Nc4 {[%clk 0:00:22]}  Kg6 {[%clk 0:00:20]} 65. b4 {[%clk 0:00:18]}  axb4 {[%clk 0:00:19]} 66. a5 {[%clk 0:00:18]}  h5 {[%clk 0:00:19]} 67. a6 {[%clk 0:00:19]}  h4+ {[%clk 0:00:19]} 68. Kh2 {[%clk 0:00:18]}  b3 {[%clk 0:00:20]} 69. Kh3 {[%clk 0:00:13]}  Kh5 {[%clk 0:00:19]} 70. Kh2 {[%clk 0:00:11]}  Na7 {[%clk 0:00:19]} 71. Kg2 {[%clk 0:00:12]}  g4 {[%clk 0:00:19]} 72. Kh2 {[%clk 0:00:12]}  Kg5 {[%clk 0:00:20]} 73. Kg2 {[%clk 0:00:12]}  f4 {[%clk 0:00:20]} 74. Kf2 {[%clk 0:00:12]}  h3 {[%clk 0:00:20]} 75. Kg1 {[%clk 0:00:13]}  g3 {[%clk 0:00:21]} 76. Kh1 {[%clk 0:00:14]}  f3 {[%clk 0:00:21]} 77. Nd2 {[%clk 0:00:13]}  Kf4 {[%clk 0:00:18]} 78. Nf1 {[%clk 0:00:11]}  g2+ {[%clk 0:00:18]} 79. Kh2 {[%clk 0:00:12]}  b2 {[%clk 0:00:15]} 80. Nd2 {[%clk 0:00:11]}  f2 {[%clk 0:00:15]} 81. Nf1 {[%clk 0:00:10]}  g1=Q+ {[%clk 0:00:15]} 82. Kxh3 {[%clk 0:00:11]}  Qxf1+ {[%clk 0:00:14]} 83. Kh4 {[%clk 0:00:09]}  Qg2 {[%clk 0:00:14]} 84. Kh5 {[%clk 0:00:08]}  Qg5# {[%clk 0:00:14]} 0-1


[Site "https://www.chess.com"]

[Event "Titled Tuesday Blitz March 22 Late 2022"]
[White "Fishbein, Alexander"]
[Black "Papasimakopoulos, Alexandros"]
[WhiteFideId "2000377"]
[BlackFideId "4244125"]
[WhiteElo "2442"]
[BlackElo "2340"]
[Result "1-0"]
[Round "11"]
[TimeControl "180+1"]
[Date "2022.03.22"]
[WhiteClock "0:00:07"]
[BlackClock "0:00:13"]

1. e4 {[%clk 0:02:59]}  e6 {[%clk 0:02:59]} 2. d4 {[%clk 0:02:59]}  d5 {[%clk 0:02:59]} 3. exd5 {[%clk 0:02:59]}  exd5 {[%clk 0:02:59]} 4. Nf3 {[%clk 0:03:00]}  Bg4 {[%clk 0:02:59]} 5. h3 {[%clk 0:02:59]}  Bh5 {[%clk 0:02:59]} 6. Qe2+ {[%clk 0:02:59]}  Qe7 {[%clk 0:02:58]} 7. Be3 {[%clk 0:02:59]}  Nc6 {[%clk 0:02:59]} 8. Nc3 {[%clk 0:02:58]}  O-O-O {[%clk 0:02:59]} 9. g4 {[%clk 0:02:57]}  Bg6 {[%clk 0:02:59]} 10. O-O-O {[%clk 0:02:56]}  f6 {[%clk 0:02:59]} 11. Qb5 {[%clk 0:02:40]}  Qd7 {[%clk 0:02:53]} 12. Nh4 {[%clk 0:02:34]}  Bf7 {[%clk 0:02:50]} 13. Bg2 {[%clk 0:02:14]}  a6 {[%clk 0:02:45]} 14. Qa4 {[%clk 0:02:05]}  Bb4 {[%clk 0:02:40]} 15. Ne2 {[%clk 0:02:02]}  Nge7 {[%clk 0:02:39]} 16. c3 {[%clk 0:01:58]}  Bd6 {[%clk 0:02:38]} 17. Qc2 {[%clk 0:01:48]}  g5 {[%clk 0:02:31]} 18. Nf5 {[%clk 0:01:38]}  Nxf5 {[%clk 0:02:31]} 19. Qxf5 {[%clk 0:01:24]}  Qxf5 {[%clk 0:02:31]} 20. gxf5 {[%clk 0:01:25]}  Ne7 {[%clk 0:02:31]} 21. h4 {[%clk 0:01:24]}  Bh5 {[%clk 0:02:00]} 22. Rde1 {[%clk 0:01:14]}  Bxe2 {[%clk 0:01:51]} 23. Rxe2 {[%clk 0:01:15]}  g4 {[%clk 0:01:51]} 24. Bd2 {[%clk 0:01:00]}  c6 {[%clk 0:01:36]} 25. Re6 {[%clk 0:00:58]}  Rhf8 {[%clk 0:01:35]} 26. f3 {[%clk 0:00:52]}  g3 {[%clk 0:01:13]} 27. Rhe1 {[%clk 0:00:51]}  Kd7 {[%clk 0:01:09]} 28. Kc2 {[%clk 0:00:41]}  Rf7 {[%clk 0:01:09]} 29. b3 {[%clk 0:00:36]}  Rg8 {[%clk 0:01:07]} 30. c4 {[%clk 0:00:34]}  Nxf5 {[%clk 0:00:56]} 31. Bh3 {[%clk 0:00:33]}  Nxd4+ {[%clk 0:00:56]} 32. Kd3 {[%clk 0:00:31]}  Nxe6 {[%clk 0:00:57]} 33. Bxe6+ {[%clk 0:00:29]}  Ke7 {[%clk 0:00:58]} 34. cxd5 {[%clk 0:00:24]}  cxd5 {[%clk 0:00:56]} 35. Bxd5+ {[%clk 0:00:22]}  Be5 {[%clk 0:00:42]} 36. f4 {[%clk 0:00:20]}  g2 {[%clk 0:00:42]} 37. Rg1 {[%clk 0:00:07]}  Rg3+ {[%clk 0:00:32]} 38. Ke4 {[%clk 0:00:03]}  Rfg7 {[%clk 0:00:17]} 39. fxe5 {[%clk 0:00:03]}  R7g4+ {[%clk 0:00:16]} 40. Bf4 {[%clk 0:00:03]}  fxe5 {[%clk 0:00:15]} 41. Kxe5 {[%clk 0:00:03]}  Rd3 {[%clk 0:00:14]} 42. Bg5+ {[%clk 0:00:03]}  Kd7 {[%clk 0:00:14]} 43. Be6+ {[%clk 0:00:03]}  Kc6 {[%clk 0:00:15]} 44. Bxg4 {[%clk 0:00:03]}  Rg3 {[%clk 0:00:15]} 45. Bf5 {[%clk 0:00:03]}  Kc5 {[%clk 0:00:14]} 46. Be4 {[%clk 0:00:03]}  h6 {[%clk 0:00:14]} 47. Rxg2 {[%clk 0:00:04]}  Rh3 {[%clk 0:00:12]} 48. Bxh6 {[%clk 0:00:04]}  Rxh4 {[%clk 0:00:13]} 49. Bf8+ {[%clk 0:00:04]}  Kb5 {[%clk 0:00:13]} 50. Bxb7 {[%clk 0:00:04]}  Rh5+ {[%clk 0:00:11]} 51. Kd6 {[%clk 0:00:03]}  Rh8 {[%clk 0:00:12]} 52. Bd5 {[%clk 0:00:04]}  Rxf8 {[%clk 0:00:12]} 53. Rg5 {[%clk 0:00:04]}  Kb4 {[%clk 0:00:12]} 54. Bc4 {[%clk 0:00:05]}  Ra8 {[%clk 0:00:11]} 55. Rg6 {[%clk 0:00:04]}  a5 {[%clk 0:00:11]} 56. Kd5 {[%clk 0:00:04]}  a4 {[%clk 0:00:12]} 57. Rb6+ {[%clk 0:00:04]}  Kc3 {[%clk 0:00:12]} 58. bxa4 {[%clk 0:00:04]}  Rd8+ {[%clk 0:00:12]} 59. Kc5 {[%clk 0:00:04]}  Rc8+ {[%clk 0:00:12]} 60. Rc6 {[%clk 0:00:04]}  Ra8 {[%clk 0:00:09]} 61. Bb3 {[%clk 0:00:05]}  Rb8 {[%clk 0:00:08]} 62. a5 {[%clk 0:00:05]}  Ra8 {[%clk 0:00:07]} 63. a6 {[%clk 0:00:05]}  Kb2 {[%clk 0:00:05]} 64. Kb6 {[%clk 0:00:05]}  Ka3 {[%clk 0:00:06]} 65. a7 {[%clk 0:00:05]}  Rh8 {[%clk 0:00:06]} 66. Kb7 {[%clk 0:00:06]}  Rh7+ {[%clk 0:00:07]} 67. Rc7 {[%clk 0:00:06]}  Rxc7+ {[%clk 0:00:07]} 68. Kxc7 {[%clk 0:00:06]}  Kb4 {[%clk 0:00:06]} 69. a8=Q {[%clk 0:00:06]}  Kc3 {[%clk 0:00:06]} 70. Qc6+ {[%clk 0:00:06]}  Kb2 {[%clk 0:00:07]} 71. a4 {[%clk 0:00:06]}  Ka3 {[%clk 0:00:08]} 72. a5 {[%clk 0:00:06]}  Kb2 {[%clk 0:00:09]} 73. a6 {[%clk 0:00:07]}  Ka3 {[%clk 0:00:10]} 74. a7 {[%clk 0:00:07]}  Kb2 {[%clk 0:00:11]} 75. a8=Q {[%clk 0:00:07]}  Kb1 {[%clk 0:00:11]} 76. Qab7 {[%clk 0:00:07]}  Kb2 {[%clk 0:00:12]} 77. Be6+ {[%clk 0:00:07]}  Ka3 {[%clk 0:00:13]} 78. Qca6# {[%clk 0:00:07]} 1-0


[Site "https://www.chess.com"]

[Event "Titled Tuesday Blitz March 22 Late 2022"]
[White "Horak, Martin"]
[Black "Terletsky, Oleg"]
[WhiteFideId "367095"]
[BlackFideId "14116774"]
[WhiteElo "1997"]
[BlackElo "2064"]
[Result "1-0"]
[Round "11"]
[TimeControl "180+1"]
[Date "2022.03.22"]
[WhiteClock "0:00:23"]
[BlackClock "0:00:12"]

1. d4 {[%clk 0:03:00]}  Nf6 {[%clk 0:02:59]} 2. Bg5 {[%clk 0:02:59]}  g6 {[%clk 0:02:59]} 3. Bxf6 {[%clk 0:02:59]}  exf6 {[%clk 0:03:00]} 4. e3 {[%clk 0:02:59]}  f5 {[%clk 0:03:00]} 5. g3 {[%clk 0:03:00]}  Bg7 {[%clk 0:03:00]} 6. Bg2 {[%clk 0:03:00]}  h5 {[%clk 0:03:01]} 7. Ne2 {[%clk 0:03:01]}  h4 {[%clk 0:03:01]} 8. c4 {[%clk 0:02:58]}  d6 {[%clk 0:02:56]} 9. Nbc3 {[%clk 0:02:58]}  c6 {[%clk 0:02:56]} 10. b4 {[%clk 0:02:54]}  a6 {[%clk 0:02:53]} 11. a4 {[%clk 0:02:52]}  Nd7 {[%clk 0:02:40]} 12. b5 {[%clk 0:02:31]}  c5 {[%clk 0:02:36]} 13. bxa6 {[%clk 0:02:15]}  Rxa6 {[%clk 0:02:33]} 14. Nb5 {[%clk 0:02:14]}  Nf6 {[%clk 0:02:16]} 15. Rb1 {[%clk 0:01:52]}  hxg3 {[%clk 0:02:06]} 16. hxg3 {[%clk 0:01:52]}  Rxh1+ {[%clk 0:02:05]} 17. Bxh1 {[%clk 0:01:53]}  Ne4 {[%clk 0:01:48]} 18. Nf4 {[%clk 0:01:43]}  Qa5+ {[%clk 0:01:17]} 19. Ke2 {[%clk 0:01:43]}  Nc3+ {[%clk 0:01:03]} 20. Nxc3 {[%clk 0:01:35]}  Qxc3 {[%clk 0:01:04]} 21. Bxb7 {[%clk 0:01:16]}  Bxb7 {[%clk 0:00:49]} 22. Rxb7 {[%clk 0:01:15]}  Qxc4+ {[%clk 0:00:48]} 23. Qd3 {[%clk 0:00:42]}  Qxd3+ {[%clk 0:00:30]} 24. Kxd3 {[%clk 0:00:26]}  cxd4 {[%clk 0:00:30]} 25. Rb4 {[%clk 0:00:25]}  dxe3 {[%clk 0:00:24]} 26. Kxe3 {[%clk 0:00:26]}  Bh6 {[%clk 0:00:20]} 27. Kd3 {[%clk 0:00:25]}  Bxf4 {[%clk 0:00:18]} 28. Rxf4 {[%clk 0:00:25]}  Ke7 {[%clk 0:00:18]} 29. Rb4 {[%clk 0:00:25]}  Ke6 {[%clk 0:00:15]} 30. Kc4 {[%clk 0:00:25]}  Ke5 {[%clk 0:00:13]} 31. f4+ {[%clk 0:00:23]}  Ke4 {[%clk 0:00:13]} 32. Kb5+ {[%clk 0:00:23]}  Kf3 {[%clk 0:00:12]} 33. Kxa6 {[%clk 0:00:23]}  Kxg3 {[%clk 0:00:12]} 34. Kb5 {[%clk 0:00:23]} 1-0


[Site "https://www.chess.com"]

[Event "Titled Tuesday Blitz March 22 Late 2022"]
[White "Indjic, Aleksandar"]
[Black "Lazavik, Denis"]
[WhiteFideId "911925"]
[BlackFideId "13515110"]
[WhiteElo "2616"]
[BlackElo "2437"]
[Result "1-0"]
[Round "11"]
[TimeControl "180+1"]
[Date "2022.03.22"]
[WhiteClock "0:01:05"]
[BlackClock "0:00:29"]

1. d4 {[%clk 0:03:00]}  Nf6 {[%clk 0:02:59]} 2. c4 {[%clk 0:03:01]}  e6 {[%clk 0:02:59]} 3. Nc3 {[%clk 0:03:01]}  Bb4 {[%clk 0:03:00]} 4. Qc2 {[%clk 0:03:01]}  O-O {[%clk 0:03:00]} 5. Nf3 {[%clk 0:03:01]}  c5 {[%clk 0:02:59]} 6. dxc5 {[%clk 0:03:01]}  Na6 {[%clk 0:03:00]} 7. g3 {[%clk 0:03:01]}  Nxc5 {[%clk 0:03:00]} 8. Bg2 {[%clk 0:03:01]}  Nce4 {[%clk 0:03:00]} 9. O-O {[%clk 0:03:02]}  Nxc3 {[%clk 0:02:57]} 10. bxc3 {[%clk 0:03:03]}  Be7 {[%clk 0:02:57]} 11. e4 {[%clk 0:03:03]}  d6 {[%clk 0:02:57]} 12. e5 {[%clk 0:03:04]}  dxe5 {[%clk 0:02:58]} 13. Nxe5 {[%clk 0:03:05]}  Qc7 {[%clk 0:02:57]} 14. Re1 {[%clk 0:03:05]}  Nd7 {[%clk 0:02:52]} 15. Bf4 {[%clk 0:03:02]}  Nxe5 {[%clk 0:02:52]} 16. Bxe5 {[%clk 0:03:03]}  Bd6 {[%clk 0:02:53]} 17. Qe2 {[%clk 0:02:57]}  Bxe5 {[%clk 0:02:53]} 18. Qxe5 {[%clk 0:02:58]}  Qxe5 {[%clk 0:02:53]} 19. Rxe5 {[%clk 0:02:58]}  Rb8 {[%clk 0:02:54]} 20. Rb1 {[%clk 0:02:56]}  b6 {[%clk 0:02:53]} 21. c5 {[%clk 0:02:56]}  f6 {[%clk 0:02:45]} 22. Re2 {[%clk 0:02:54]}  e5 {[%clk 0:02:41]} 23. cxb6 {[%clk 0:02:09]}  axb6 {[%clk 0:02:39]} 24. Bd5+ {[%clk 0:02:05]}  Kh8 {[%clk 0:02:38]} 25. c4 {[%clk 0:02:06]}  Bf5 {[%clk 0:02:37]} 26. Rb4 {[%clk 0:02:05]}  Rfd8 {[%clk 0:01:46]} 27. Reb2 {[%clk 0:02:03]}  Rd6 {[%clk 0:01:46]} 28. a4 {[%clk 0:02:01]}  Bd7 {[%clk 0:01:45]} 29. h4 {[%clk 0:01:53]}  h5 {[%clk 0:01:38]} 30. a5 {[%clk 0:01:42]}  b5 {[%clk 0:01:36]} 31. Bf3 {[%clk 0:01:41]}  Ra6 {[%clk 0:01:17]} 32. Ra2 {[%clk 0:01:24]}  g6 {[%clk 0:01:02]} 33. Be2 {[%clk 0:01:21]}  Rba8 {[%clk 0:00:45]} 34. cxb5 {[%clk 0:01:15]}  Rxa5 {[%clk 0:00:44]} 35. Rxa5 {[%clk 0:01:11]}  Rxa5 {[%clk 0:00:45]} 36. b6 {[%clk 0:01:10]}  Ra1+ {[%clk 0:00:45]} 37. Bf1 {[%clk 0:01:09]}  Ra8 {[%clk 0:00:41]} 38. b7 {[%clk 0:01:09]}  Rb8 {[%clk 0:00:41]} 39. Ba6 {[%clk 0:01:08]}  Kg7 {[%clk 0:00:36]} 40. Rc4 {[%clk 0:01:07]}  Kf7 {[%clk 0:00:29]} 41. Rc8 {[%clk 0:01:05]} 1-0


[Site "https://www.chess.com"]

[Event "Titled Tuesday Blitz March 22 Late 2022"]
[White "Janturin, Artur"]
[Black "Kohler, Aran"]
[WhiteFideId "4130022"]
[BlackFideId "1002856"]
[WhiteElo "2341"]
[BlackElo "2290"]
[Result "0-1"]
[Round "11"]
[TimeControl "180+1"]
[Date "2022.03.22"]
[WhiteClock "0:00:07"]
[BlackClock "0:00:19"]

1. b3 {[%clk 0:03:00]}  e5 {[%clk 0:02:58]} 2. Bb2 {[%clk 0:03:01]}  Nc6 {[%clk 0:02:58]} 3. e3 {[%clk 0:03:02]}  a6 {[%clk 0:02:59]} 4. c4 {[%clk 0:02:58]}  Nf6 {[%clk 0:02:58]} 5. Nc3 {[%clk 0:02:57]}  b5 {[%clk 0:02:56]} 6. Nf3 {[%clk 0:02:47]}  bxc4 {[%clk 0:02:51]} 7. bxc4 {[%clk 0:02:48]}  Rb8 {[%clk 0:02:49]} 8. Rb1 {[%clk 0:02:47]}  d5 {[%clk 0:02:36]} 9. cxd5 {[%clk 0:02:11]}  Nxd5 {[%clk 0:02:35]} 10. Qa4 {[%clk 0:02:11]}  Qd7 {[%clk 0:01:52]} 11. Nxd5 {[%clk 0:01:42]}  Qxd5 {[%clk 0:01:50]} 12. Nxe5 {[%clk 0:01:42]}  Bd7 {[%clk 0:01:50]} 13. Nxd7 {[%clk 0:01:20]}  Qxd7 {[%clk 0:01:50]} 14. Bxa6 {[%clk 0:01:06]}  Rb4 {[%clk 0:01:48]} 15. Qc2 {[%clk 0:01:00]}  Bd6 {[%clk 0:01:43]} 16. Bxg7 {[%clk 0:00:48]}  Rg8 {[%clk 0:01:42]} 17. Rxb4 {[%clk 0:00:36]}  Nxb4 {[%clk 0:01:41]} 18. Qe4+ {[%clk 0:00:37]}  Qe7 {[%clk 0:00:41]} 19. Qa8+ {[%clk 0:00:24]}  Qd8 {[%clk 0:00:35]} 20. Qxd8+ {[%clk 0:00:22]}  Kxd8 {[%clk 0:00:35]} 21. Bf6+ {[%clk 0:00:22]}  Kd7 {[%clk 0:00:34]} 22. Bf1 {[%clk 0:00:20]}  Nxa2 {[%clk 0:00:33]} 23. f4 {[%clk 0:00:19]}  Nb4 {[%clk 0:00:32]} 24. Bc3 {[%clk 0:00:19]}  Nd5 {[%clk 0:00:31]} 25. Bd4 {[%clk 0:00:18]}  c5 {[%clk 0:00:31]} 26. Bc3 {[%clk 0:00:17]}  Nxc3 {[%clk 0:00:30]} 27. dxc3 {[%clk 0:00:18]}  Ra8 {[%clk 0:00:28]} 28. Be2 {[%clk 0:00:16]}  Ra1+ {[%clk 0:00:27]} 29. Bd1 {[%clk 0:00:16]}  Ra2 {[%clk 0:00:26]} 30. O-O {[%clk 0:00:16]}  c4 {[%clk 0:00:23]} 31. Be2 {[%clk 0:00:15]}  Rxe2 {[%clk 0:00:22]} 32. Ra1 {[%clk 0:00:13]}  Rxe3 {[%clk 0:00:21]} 33. Ra7+ {[%clk 0:00:13]}  Ke6 {[%clk 0:00:21]} 34. g3 {[%clk 0:00:13]}  Rxc3 {[%clk 0:00:21]} 35. Ra8 {[%clk 0:00:11]}  Rc2 {[%clk 0:00:20]} 36. Rc8 {[%clk 0:00:07]}  c3 {[%clk 0:00:19]} 0-1


[Site "https://www.chess.com"]

[Event "Titled Tuesday Blitz March 22 Late 2022"]
[White "Kamsky, Gata"]
[Black "Kaasen, Tor Fredrik"]
[WhiteFideId "2000024"]
[BlackFideId "1516647"]
[WhiteElo "2645"]
[BlackElo "2335"]
[Result "1-0"]
[Round "11"]
[TimeControl "180+1"]
[Date "2022.03.22"]
[WhiteClock "0:00:09"]
[BlackClock "0:00:01"]

1. d4 {[%clk 0:03:00]}  Nf6 {[%clk 0:03:00]} 2. Nf3 {[%clk 0:02:54]}  g6 {[%clk 0:03:00]} 3. Bg5 {[%clk 0:02:50]}  Bg7 {[%clk 0:02:58]} 4. c3 {[%clk 0:02:50]}  O-O {[%clk 0:02:55]} 5. Nbd2 {[%clk 0:02:49]}  h6 {[%clk 0:02:54]} 6. Bh4 {[%clk 0:02:49]}  d6 {[%clk 0:02:55]} 7. e4 {[%clk 0:02:48]}  c5 {[%clk 0:02:55]} 8. d5 {[%clk 0:02:42]}  e6 {[%clk 0:02:52]} 9. dxe6 {[%clk 0:02:41]}  Bxe6 {[%clk 0:02:51]} 10. Bxf6 {[%clk 0:02:38]}  Qxf6 {[%clk 0:02:43]} 11. Bc4 {[%clk 0:02:38]}  Nc6 {[%clk 0:02:43]} 12. O-O {[%clk 0:02:37]}  Rad8 {[%clk 0:02:41]} 13. Re1 {[%clk 0:02:30]}  d5 {[%clk 0:02:21]} 14. exd5 {[%clk 0:02:29]}  Bxd5 {[%clk 0:02:21]} 15. Bxd5 {[%clk 0:02:28]}  Rxd5 {[%clk 0:02:22]} 16. Qb3 {[%clk 0:02:15]}  Rd7 {[%clk 0:02:09]} 17. Ne4 {[%clk 0:02:13]}  Qe7 {[%clk 0:02:10]} 18. Qb5 {[%clk 0:02:09]}  Rd5 {[%clk 0:02:00]} 19. h3 {[%clk 0:01:44]}  Ne5 {[%clk 0:01:48]} 20. Ned2 {[%clk 0:01:40]}  Rfd8 {[%clk 0:01:31]} 21. Nxe5 {[%clk 0:01:38]}  Rxd2 {[%clk 0:01:05]} 22. Nf3 {[%clk 0:01:30]}  Qd7 {[%clk 0:01:06]} 23. Qxd7 {[%clk 0:01:10]}  R2xd7 {[%clk 0:01:07]} 24. a4 {[%clk 0:01:10]}  b6 {[%clk 0:01:04]} 25. g4 {[%clk 0:01:00]}  Bf6 {[%clk 0:01:04]} 26. Kg2 {[%clk 0:00:59]}  Kg7 {[%clk 0:00:46]} 27. h4 {[%clk 0:00:56]}  Rd5 {[%clk 0:00:43]} 28. Re4 {[%clk 0:00:52]}  R5d7 {[%clk 0:00:17]} 29. Rae1 {[%clk 0:00:45]}  Rd5 {[%clk 0:00:17]} 30. R1e2 {[%clk 0:00:30]}  a6 {[%clk 0:00:18]} 31. Re8 {[%clk 0:00:25]}  Rxe8 {[%clk 0:00:16]} 32. Rxe8 {[%clk 0:00:24]}  Rd8 {[%clk 0:00:16]} 33. Re4 {[%clk 0:00:23]}  Rd5 {[%clk 0:00:12]} 34. Re1 {[%clk 0:00:22]}  b5 {[%clk 0:00:09]} 35. axb5 {[%clk 0:00:22]}  axb5 {[%clk 0:00:10]} 36. Re4 {[%clk 0:00:21]}  Kf8 {[%clk 0:00:07]} 37. Kg3 {[%clk 0:00:21]}  b4 {[%clk 0:00:06]} 38. cxb4 {[%clk 0:00:20]}  Bxb2 {[%clk 0:00:07]} 39. b5 {[%clk 0:00:19]}  c4 {[%clk 0:00:07]} 40. Rxc4 {[%clk 0:00:18]}  Rxb5 {[%clk 0:00:08]} 41. Rc6 {[%clk 0:00:18]}  Kg7 {[%clk 0:00:08]} 42. Nd2 {[%clk 0:00:18]}  Be5+ {[%clk 0:00:05]} 43. Kg2 {[%clk 0:00:18]}  Rb4 {[%clk 0:00:04]} 44. Nc4 {[%clk 0:00:18]}  Bd4 {[%clk 0:00:04]} 45. Kf3 {[%clk 0:00:17]}  Bf6 {[%clk 0:00:04]} 46. h5 {[%clk 0:00:17]}  gxh5 {[%clk 0:00:04]} 47. gxh5 {[%clk 0:00:17]}  Rb5 {[%clk 0:00:05]} 48. Nd6 {[%clk 0:00:17]}  Rb3+ {[%clk 0:00:03]} 49. Kg4 {[%clk 0:00:17]}  Rb4+ {[%clk 0:00:02]} 50. f4 {[%clk 0:00:17]}  Bg5 {[%clk 0:00:02]} 51. Nc4 {[%clk 0:00:15]}  Bf6 {[%clk 0:00:02]} 52. Rc7 {[%clk 0:00:16]}  Bd4 {[%clk 0:00:02]} 53. Kf3 {[%clk 0:00:13]}  Rb3+ {[%clk 0:00:01]} 54. Ke4 {[%clk 0:00:13]}  Ba1 {[%clk 0:00:01]} 55. Nd6 {[%clk 0:00:13]}  Rb4+ {[%clk 0:00:02]} 56. Kf3 {[%clk 0:00:13]}  Rb3+ {[%clk 0:00:02]} 57. Kg4 {[%clk 0:00:14]}  Kf6 {[%clk 0:00:03]} 58. Nxf7 {[%clk 0:00:13]}  Rb1 {[%clk 0:00:03]} 59. Nxh6 {[%clk 0:00:13]}  Rg1+ {[%clk 0:00:03]} 60. Kf3 {[%clk 0:00:12]}  Rh1 {[%clk 0:00:04]} 61. Ng4+ {[%clk 0:00:12]}  Ke6 {[%clk 0:00:04]} 62. Rc6+ {[%clk 0:00:12]}  Kd5 {[%clk 0:00:04]} 63. Ra6 {[%clk 0:00:11]}  Bd4 {[%clk 0:00:03]} 64. h6 {[%clk 0:00:11]}  Rh4 {[%clk 0:00:01]} 65. Kg3 {[%clk 0:00:11]}  Rh1 {[%clk 0:00:02]} 66. Nf6+ {[%clk 0:00:10]}  Kc4 {[%clk 0:00:02]} 67. Ne4 {[%clk 0:00:09]}  Kd3 {[%clk 0:00:01]} 68. Ng5 {[%clk 0:00:09]} 1-0


[Site "https://www.chess.com"]